[Event "GER-chW Blitz 2019"]
[Site "Magdeburg"]
[Date "2019.05.25"]
[Round "16.6"]
[White "Muetsch, Annmarie"]
[Black "Mader, Lena"]
[Result "1-0"]
[ECO "B10"]
[WhiteElo "2266"]
[BlackElo "1839"]
[Annotator "NA"]
[PlyCount "45"]
[EventDate "2019.05.25"]
[EventType "tourn"]
[EventCountry "GER"]
[SourceTitle "playchess.com"]
[Source "ChessBase"]
[SourceQuality "1"]
[TimeControl "180+2"]

1. e4 {[%emt 0:00:00]} c6 {[%emt 0:00:00]} 2. Nc3 {[%emt 0:00:04]} d5 {[%emt 0:00:00]} 3. Nf3 {[%emt 0:00:01]} d4 {[%emt 0:00:08]} 4. Ne2 {[%emt 0:00:02]} c5 {[%emt 0:00:07]} 5. c3 {[%emt 0:00:02]} d3 {[%emt 0:00:14]} 6. Nf4 {[%emt 0:00:04]} c4 {[%emt 0:00:07]} 7. Qa4+ {[%emt 0:00:04]} Nc6 {[%emt 0:00:37]} 8. Qxc4 {[%emt 0:00:03]} e5 {[%emt 0:00:45]} 9. Nxd3 {[%emt 0:00:10]} Be6 {[%emt 0:00:04]} 10. Qa4 {[%emt 0:00:02]} Bd7 {[%emt 0:00:13]} 11. Qc2 {[%emt 0:00:04]} Bd6 {[%emt 0:00:05]} 12. b4 {[%emt 0:00:13]} a6 {[%emt 0:00:02]} 13. Be2 {[%emt 0:00:09]} Nf6 {[%emt 0:00:01]} 14. Nb2 {[%emt 0:00:01]} O-O {[%emt 0:00:02]} 15. O-O {[%emt 0:00:04]} b5 {[%emt 0:00:10]} 16. d3 {[%emt 0:00:14]} Rc8 {[%emt 0:00:15]} 17. Qd1 {[%emt 0:00:02]} Nh5 {[%emt 0:00:26]} 18. a4 {[%emt 0:00:26]} Nf4 {[%emt 0:00:12]} 19. Bxf4 {[%emt 0:00:02]} exf4 {[%emt 0:00:01]} 20. d4 {[%emt 0:00:02]} Bg4 21. e5 Bb8 22. axb5 axb5 23. Bxb5 1-0

[Event "GER-chW Blitz 2019"]
[Site "Magdeburg"]
[Date "2019.05.25"]
[Round "16.7"]
[White "Siegl, Melina"]
[Black "Braje, Monika"]
[Result "1-0"]
[ECO "B01"]
[WhiteElo "2029"]
[BlackElo "1781"]
[Annotator "NA"]
[PlyCount "39"]
[EventDate "2019.05.25"]
[EventType "tourn"]
[EventCountry "GER"]
[SourceTitle "playchess.com"]
[Source "ChessBase"]
[SourceQuality "1"]
[TimeControl "180+2"]

1. e4 {[%emt 0:00:00]} d5 {[%emt 0:00:00]} 2. exd5 {[%emt 0:00:00]} Nf6 {[%emt 0:00:00]} 3. d4 {[%emt 0:00:02]} Nxd5 {[%emt 0:00:00]} 4. c4 {[%emt 0:00:09]} Nb6 {[%emt 0:00:00]} 5. Nc3 e5 6. d5 {[%emt 0:00:05]} Bb4 {[%emt 0:00:02]} 7. Bd2 {[%emt 0:00:03]} O-O {[%emt 0:00:02]} 8. Bd3 {[%emt 0:00:09]} f5 {[%emt 0:00:05]} 9. a3 {[%emt 0:00:21]} Bxc3 {[%emt 0:00:02]} 10. Bxc3 {[%emt 0:00:01]} e4 {[%emt 0:00:02]} 11. Be2 {[%emt 0:00:01]} Qg5 {[%emt 0:00:12]} 12. Nh3 {[%emt 0:00:22]} Qh6 {[%emt 0:00:10]} 13. O-O {[%emt 0:00:10]} f4 {[%emt 0:00:17]} 14. Bg4 {[%emt 0:00:01]} Nxc4 {[%emt 0:00:23]} 15. Bxc8 {[%emt 0:00:05]} Rxc8 {[%emt 0:00:01]} 16. Qg4 {[%emt 0:00:08]} Rf8 {[%emt 0:00:04]} 17. Rac1 {[%emt 0:00:17]} Nd6 {[%emt 0:00:02]} 18. Be5 {[%emt 0:00:10]} f3 {[%emt 0:00:05]} 19. Rxc7 {[%emt 0:00:06]} fxg2 {[%emt 0:00:14]} 20. Rxg7+ {[%emt 0:00:10]} 1-0

[Event "GER-chW Blitz 2019"]
[Site "Magdeburg"]
[Date "2019.05.25"]
[Round "16.8"]
[White "Hofmann, Karina"]
[Black "Schulze, Lara"]
[Result "0-1"]
[ECO "A03"]
[WhiteElo "1700"]
[BlackElo "2160"]
[Annotator "NA"]
[PlyCount "78"]
[EventDate "2019.05.25"]
[EventType "tourn"]
[EventCountry "GER"]
[SourceTitle "playchess.com"]
[Source "ChessBase"]
[SourceQuality "1"]
[TimeControl "180+2"]

1. f4 {[%emt 0:00:00]} d5 {[%emt 0:00:00]} 2. Nf3 {[%emt 0:00:00]} Bg4 {[%emt 0:00:00]} 3. e3 {[%emt 0:00:03]} Nd7 {[%emt 0:00:01]} 4. b3 {[%emt 0:00:02]} e5 {[%emt 0:00:07]} 5. h3 {[%emt 0:00:09]} Bxf3 {[%emt 0:00:08]} 6. Qxf3 {[%emt 0:00:02]} c6 {[%emt 0:00:01]} 7. Bb2 {[%emt 0:00:07]} Bd6 {[%emt 0:00:01]} 8. d3 {[%emt 0:00:12]} Ne7 {[%emt 0:00:09]} 9. Nd2 {[%emt 0:00:03]} f6 {[%emt 0:00:05]} 10. O-O-O {[%emt 0:00:04]} Qc7 {[%emt 0:00:12]} 11. f5 {[%emt 0:00:02]} O-O-O {[%emt 0:00:16]} 12. g4 {[%emt 0:00:01]} h5 {[%emt 0:00:07]} 13. Bg2 {[%emt 0:00:02]} hxg4 {[%emt 0:00:14]} 14. hxg4 {[%emt 0:00:01]} a5 {[%emt 0:00:04]} 15. Rhg1 {[%emt 0:00:16]} a4 {[%emt 0:00:18]} 16. e4 {[%emt 0:00:02]} Kb8 {[%emt 0:00:12]} 17. Qf2 {[%emt 0:00:07]} Bc5 {[%emt 0:00:03]} 18. d4 {[%emt 0:00:05]} Ba7 {[%emt 0:00:10]} 19. c3 {[%emt 0:00:13]} exd4 {[%emt 0:00:19]} 20. cxd4 {[%emt 0:00:02]} dxe4 {[%emt 0:00:01]} 21. Nxe4 {[%emt 0:00:06]} Nd5 {[%emt 0:00:01]} 22. Kb1 {[%emt 0:00:12]} axb3 {[%emt 0:00:12]} 23. axb3 {[%emt 0:00:04]} Qb6 {[%emt 0:00:11]} 24. Nc5 {[%emt 0:00:14]} Nxc5 {[%emt 0:00:06]} 25. dxc5 {[%emt 0:00:01]} Qxc5 {[%emt 0:00:06]} 26. Qg3+ {[%emt 0:00:13]} Ka8 {[%emt 0:00:00]} 27. Rc1 {[%emt 0:00:07]} Qe3 {[%emt 0:00:12]} 28. Qf3 {[%emt 0:00:39]} Qxf3 {[%emt 0:00:03]} 29. Bxf3 {[%emt 0:00:02]} Bxg1 {[%emt 0:00:01]} 30. Rxg1 {[%emt 0:00:02]} Rh3 {[%emt 0:00:11]} 31. Bxd5 {[%emt 0:00:02]} Rxd5 {[%emt 0:00:00]} 32. Ka2 {[%emt 0:00:02]} Rh2 {[%emt 0:00:02]} 33. Ka3 {[%emt 0:00:02]} Ra5+ {[%emt 0:00:01]} 34. Kb4 {[%emt 0:00:01]} Rb5+ {[%emt 0:00:03]} 35. Kc4 {[%emt 0:00:02]} Rxb2 {[%emt 0:00:02]} 36. Re1 {[%emt 0:00:02]} R2xb3 {[%emt 0:00:02]} 37. Re8+ {[%emt 0:00:02]} Ka7 {[%emt 0:00:01]} 38. Re7 {[%emt 0:00:01]} Kb6 {[%emt 0:00:03]} 39. Rxg7 {[%emt 0:00:05]} R5b4# {[%emt 0:00:01] Kd4} 0-1

[Event "GER-chW Blitz 2019"]
[Site "Magdeburg"]
[Date "2019.05.25"]
[Round "16.9"]
[White "Birkholz, Olga"]
[Black "Kushka, Alena"]
[Result "1-0"]
[ECO "B20"]
[WhiteElo "2031"]
[BlackElo "2148"]
[Annotator "NA"]
[PlyCount "55"]
[EventDate "2019.05.25"]
[EventType "tourn"]
[EventCountry "GER"]
[SourceTitle "playchess.com"]
[Source "ChessBase"]
[SourceQuality "1"]
[TimeControl "180+2"]

1. e4 {[%emt 0:00:00]} c5 {[%emt 0:00:00]} 2. b3 {[%emt 0:00:00]} Nc6 {[%emt 0:00:02]} 3. Bb2 {[%emt 0:00:01]} Nf6 {[%emt 0:00:07]} 4. d3 {[%emt 0:00:03]} e6 {[%emt 0:00:04]} 5. f4 {[%emt 0:00:01]} d5 {[%emt 0:00:01]} 6. e5 {[%emt 0:00:02]} Nd7 {[%emt 0:00:05]} 7. Nf3 {[%emt 0:00:01]} Be7 {[%emt 0:00:05]} 8. Qe2 {[%emt 0:00:03]} O-O {[%emt 0:00:09]} 9. g3 {[%emt 0:00:01]} f6 {[%emt 0:00:03]} 10. exf6 {[%emt 0:00:04]} Nxf6 {[%emt 0:00:02]} 11. Bh3 {[%emt 0:00:01]} Qd6 {[%emt 0:00:30]} 12. O-O {[%emt 0:00:06]} d4 {[%emt 0:00:11]} 13. Nbd2 {[%emt 0:00:06]} b5 {[%emt 0:00:13]} 14. a4 {[%emt 0:00:07]} bxa4 {[%emt 0:00:46]} 15. Rxa4 {[%emt 0:00:06]} Nd5 {[%emt 0:00:06]} 16. Nc4 {[%emt 0:00:10]} Qd7 {[%emt 0:00:05]} 17. Re1 {[%emt 0:00:03]} Rf6 {[%emt 0:00:11]} 18. Nce5 {[%emt 0:00:12]} Nxe5 {[%emt 0:00:10]} 19. Nxe5 {[%emt 0:00:03]} Qe8 {[%emt 0:00:04]} 20. Ng4 {[%emt 0:00:13]} Rg6 {[%emt 0:00:05]} 21. Bg2 {[%emt 0:00:10]} Bb7 {[%emt 0:00:05]} 22. Ne5 {[%emt 0:00:09]} Rh6 {[%emt 0:00:06]} 23. Bc1 {[%emt 0:00:06]} Rf6 {[%emt 0:00:16]} 24. Ng4 {[%emt 0:00:05]} Rg6 {[%emt 0:00:03]} 25. Be4 {[%emt 0:00:04]} Bc6 {[%emt 0:00:03]} 26. Ra1 {[%emt 0:00:04]} Rxg4 {[%emt 0:00:05]} 27. Qxg4 {[%emt 0:00:01]} Nf6 {[%emt 0:00:01]} 28. Qxe6+ {[%emt 0:00:04]} 1-0

[Event "GER-chW Blitz 2019"]
[Site "Magdeburg"]
[Date "2019.05.25"]
[Round "16.10"]
[White "Rath, Alina"]
[Black "Ries, Jutta"]
[Result "1-0"]
[ECO "A16"]
[WhiteElo "2042"]
[BlackElo "2017"]
[Annotator "NA"]
[PlyCount "135"]
[EventDate "2019.05.25"]
[EventType "tourn"]
[EventCountry "GER"]
[SourceTitle "playchess.com"]
[Source "ChessBase"]
[SourceQuality "1"]
[TimeControl "180+2"]

1. c4 {[%emt 0:00:00]} Nf6 {[%emt 0:00:00]} 2. Nc3 {[%emt 0:00:01]} d5 {[%emt 0:00:05]} 3. cxd5 {[%emt 0:00:02]} Nxd5 {[%emt 0:00:01]} 4. g3 {[%emt 0:00:00]} e5 {[%emt 0:00:06]} 5. Bg2 {[%emt 0:00:02]} c6 {[%emt 0:00:00]} 6. d3 {[%emt 0:00:06]} Be6 {[%emt 0:00:07]} 7. Nf3 {[%emt 0:00:02]} Nd7 {[%emt 0:00:02]} 8. Ng5 {[%emt 0:00:09]} Nxc3 {[%emt 0:00:32]} 9. bxc3 {[%emt 0:00:02]} Bd5 {[%emt 0:00:01]} 10. e4 {[%emt 0:00:03]} Be7 {[%emt 0:00:01]} 11. exd5 {[%emt 0:00:19]} Bxg5 {[%emt 0:00:01]} 12. dxc6 {[%emt 0:00:02]} bxc6 {[%emt 0:00:12]} 13. Bxc6 {[%emt 0:00:14]} Bxc1 {[%emt 0:00:28]} 14. Rxc1 {[%emt 0:00:20]} Rc8 {[%emt 0:00:03]} 15. Bg2 {[%emt 0:00:30]} Qa5 {[%emt 0:00:01]} 16. Qd2 {[%emt 0:00:09]} O-O {[%emt 0:00:02]} 17. O-O {[%emt 0:00:02]} Rfd8 {[%emt 0:00:01]} 18. Rfd1 {[%emt 0:00:04]} Nc5 {[%emt 0:00:02]} 19. d4 {[%emt 0:00:10]} Na4 {[%emt 0:00:40]} 20. Qe1 {[%emt 0:00:25]} Nb2 {[%emt 0:00:30]} 21. Rd2 {[%emt 0:00:16]} Nc4 {[%emt 0:00:01]} 22. Re2 {[%emt 0:00:08]} exd4 {[%emt 0:00:04]} 23. cxd4 {[%emt 0:00:02]} Qxe1+ {[%emt 0:00:03]} 24. Rcxe1 {[%emt 0:00:01]} g6 {[%emt 0:00:04]} 25. d5 {[%emt 0:00:04]} Nb6 {[%emt 0:00:07]} 26. Re7 {[%emt 0:00:09]} Nxd5 {[%emt 0:00:05]} 27. Rxa7 {[%emt 0:00:03]} Nb4 {[%emt 0:00:05]} 28. a3 {[%emt 0:00:04]} Nc6 {[%emt 0:00:01]} 29. Ra6 {[%emt 0:00:06]} Nd4 {[%emt 0:00:02]} 30. a4 {[%emt 0:00:10]} Rc2 {[%emt 0:00:01]} 31. Ra8 {[%emt 0:00:07]} Rxa8 {[%emt 0:00:04]} 32. Bxa8 {[%emt 0:00:02]} Ra2 {[%emt 0:00:01]} 33. Re8+ {[%emt 0:00:04]} Kg7 {[%emt 0:00:01]} 34. Bd5 {[%emt 0:00:01]} Rxa4 {[%emt 0:00:03]} 35. Re7 {[%emt 0:00:01]} Nf5 {[%emt 0:00:07]} 36. Rxf7+ {[%emt 0:00:02]} Kh6 {[%emt 0:00:02]} 37. Rc7 {[%emt 0:00:04]} Ra6 {[%emt 0:00:07]} 38. Bg8 {[%emt 0:00:01]} Ng7 {[%emt 0:00:02]} 39. Kg2 {[%emt 0:00:02]} g5 {[%emt 0:00:01]} 40. h3 {[%emt 0:00:01]} Kg6 {[%emt 0:00:01]} 41. Bc4 {[%emt 0:00:01]} Rd6 {[%emt 0:00:02]} 42. Bb3 {[%emt 0:00:01]} h5 {[%emt 0:00:01]} 43. Bc2+ {[%emt 0:00:01]} Kf6 {[%emt 0:00:01]} 44. Ra7 {[%emt 0:00:03]} Rc6 {[%emt 0:00:02]} 45. Be4 {[%emt 0:00:02]} Rd6 {[%emt 0:00:01]} 46. Bf3 {[%emt 0:00:01]} Ne6 {[%emt 0:00:01]} 47. Bxh5 {[%emt 0:00:01]} Rd2 {[%emt 0:00:05]} 48. Rf7+ {[%emt 0:00:02]} Ke5 49. Bg4 {[%emt 0:00:03]} Nd4 {[%emt 0:00:05]} 50. Re7+ {[%emt 0:00:01]} Kf6 {[%emt 0:00:03]} 51. Rd7 {[%emt 0:00:02]} Ke5 {[%emt 0:00:05]} 52. h4 {[%emt 0:00:01]} gxh4 {[%emt 0:00:05]} 53. gxh4 {[%emt 0:00:01]} Rb2 {[%emt 0:00:00]} 54. h5 {[%emt 0:00:03]} Rb6 {[%emt 0:00:02]} 55. Kg3 {[%emt 0:00:04]} Nc6 {[%emt 0:00:02]} 56. Rd1 {[%emt 0:00:02]} Ne7 {[%emt 0:00:01]} 57. Re1+ {[%emt 0:00:01]} Kf6 {[%emt 0:00:01]} 58. f3 {[%emt 0:00:01]} Ng8 {[%emt 0:00:01]} 59. Kh4 {[%emt 0:00:01]} Rb4 {[%emt 0:00:02]} 60. Re6+ {[%emt 0:00:02]} Kg7 {[%emt 0:00:00]} 61. Ra6 {[%emt 0:00:01]} Nf6 {[%emt 0:00:02]} 62. h6+ {[%emt 0:00:07]} Kf7 {[%emt 0:00:03]} 63. Ra7+ {[%emt 0:00:03]} Kg6 {[%emt 0:00:01]} 64. Ra6 {[%emt 0:00:01]} Kf7 {[%emt 0:00:02]} 65. Kg3 {[%emt 0:00:03]} Nh7 {[%emt 0:00:02]} 66. Bf5 {[%emt 0:00:02]} Nf8 {[%emt 0:00:02]} 67. h7 {[%emt 0:00:02]} Rb7 {[%emt 0:00:02]} 68. h8=Q {[%emt 0:00:05]} 1-0

[Event "GER-chW Blitz 2019"]
[Site "Magdeburg"]
[Date "2019.05.25"]
[Round "16.11"]
[White "Silz, Elisa"]
[Black "Lubbe, Melanie"]
[Result "0-1"]
[ECO "E98"]
[WhiteElo "1977"]
[BlackElo "2278"]
[Annotator "NA"]
[PlyCount "92"]
[EventDate "2019.05.25"]
[EventType "tourn"]
[EventCountry "GER"]
[SourceTitle "playchess.com"]
[Source "ChessBase"]
[SourceQuality "1"]
[TimeControl "180+2"]

1. d4 {[%emt 0:00:00]} Nf6 {[%emt 0:00:00]} 2. Nf3 {[%emt 0:00:00]} g6 {[%emt 0:00:00]} 3. c4 {[%emt 0:00:00]} Bg7 {[%emt 0:00:00]} 4. Nc3 d6 {[%emt 0:00:00]} 5. e4 {[%emt 0:00:01]} O-O 6. Be2 {[%emt 0:00:00]} e5 {[%emt 0:00:07]} 7. O-O {[%emt 0:00:02]} Nc6 {[%emt 0:00:01]} 8. d5 {[%emt 0:00:00]} Ne7 {[%emt 0:00:00]} 9. Ne1 {[%emt 0:00:01]} Nd7 {[%emt 0:00:06]} 10. Nd3 {[%emt 0:00:01]} f5 {[%emt 0:00:02]} 11. Bd2 {[%emt 0:00:00]} Nf6 {[%emt 0:00:03]} 12. f3 {[%emt 0:00:01]} f4 {[%emt 0:00:01]} 13. c5 {[%emt 0:00:04]} g5 {[%emt 0:00:02]} 14. cxd6 {[%emt 0:00:01]} cxd6 {[%emt 0:00:01]} 15. Qc2 {[%emt 0:00:01]} Bd7 {[%emt 0:00:03]} 16. Nf2 {[%emt 0:00:04]} h5 {[%emt 0:00:02]} 17. h3 {[%emt 0:00:02]} Rf7 {[%emt 0:00:03]} 18. Rfc1 {[%emt 0:00:02]} Bf8 {[%emt 0:00:01]} 19. Qd1 {[%emt 0:00:00]} Rh7 {[%emt 0:00:10]} 20. a4 {[%emt 0:00:06]} Ng6 {[%emt 0:00:22]} 21. Be1 {[%emt 0:00:02]} Nh4 {[%emt 0:00:13]} 22. Nd3 {[%emt 0:00:07]} Rg7 {[%emt 0:00:18]} 23. Bxh4 {[%emt 0:00:07]} gxh4 {[%emt 0:00:01]} 24. Kh1 {[%emt 0:00:10]} Nh7 {[%emt 0:00:01]} 25. Nb5 {[%emt 0:00:07]} Qg5 {[%emt 0:00:07]} 26. Bf1 {[%emt 0:00:01]} Bxh3 {[%emt 0:00:07]} 27. Rc2 {[%emt 0:00:17]} Bd7 {[%emt 0:00:04]} 28. Nc7 {[%emt 0:00:09]} Rd8 {[%emt 0:00:07]} 29. Ne6 {[%emt 0:00:04]} Bxe6 {[%emt 0:00:01]} 30. dxe6 {[%emt 0:00:01]} h3 {[%emt 0:00:07]} 31. g4 {[%emt 0:00:08]} fxg3 {[%emt 0:00:07]} 32. Bxh3 {[%emt 0:00:12]} Qh4 {[%emt 0:00:01]} 33. Qf1 {[%emt 0:00:17]} g2+ {[%emt 0:00:09]} 34. Rxg2 {[%emt 0:00:05]} Qxh3+ {[%emt 0:00:02]} 35. Rh2 {[%emt 0:00:07]} Qxf1+ {[%emt 0:00:01]} 36. Rxf1 {[%emt 0:00:01]} Nf6 {[%emt 0:00:06]} 37. Nb4 {[%emt 0:00:12]} Be7 {[%emt 0:00:05]} 38. Nd5 {[%emt 0:00:03]} Nxd5 {[%emt 0:00:01]} 39. exd5 {[%emt 0:00:01]} h4 {[%emt 0:00:03]} 40. Rc1 {[%emt 0:00:07]} Bg5 {[%emt 0:00:07]} 41. Rc4 {[%emt 0:00:09]} Rf8 {[%emt 0:00:12]} 42. Rc3 {[%emt 0:00:10]} Rf4 {[%emt 0:00:03]} 43. Rc8+ {[%emt 0:00:07]} Kh7 {[%emt 0:00:01]} 44. Rc3 {[%emt 0:00:08]} Rxa4 {[%emt 0:00:02]} 45. Rhc2 {[%emt 0:00:05]} Ra1+ {[%emt 0:00:04]} 46. Kh2 {[%emt 0:00:01]} Bf4+ {[%emt 0:00:02]} 0-1

[Event "GER-chW Blitz 2019"]
[Site "Magdeburg"]
[Date "2019.05.25"]
[Round "16.12"]
[White "Kotyk, Valeriya"]
[Black "Fuchs, Judith"]
[Result "0-1"]
[ECO "E91"]
[WhiteElo "1739"]
[BlackElo "2218"]
[Annotator "NA"]
[PlyCount "22"]
[EventDate "2019.05.25"]
[EventType "tourn"]
[EventCountry "GER"]
[SourceTitle "playchess.com"]
[Source "ChessBase"]
[SourceQuality "1"]
[TimeControl "180+2"]

1. d4 {[%emt 0:00:00]} Nf6 {[%emt 0:00:00]} 2. c4 {[%emt 0:00:01]} g6 {[%emt 0:00:01]} 3. Nc3 {[%emt 0:00:01]} Bg7 {[%emt 0:00:01]} 4. e4 {[%emt 0:00:11]} d6 {[%emt 0:00:01]} 5. Nf3 {[%emt 0:00:03]} O-O {[%emt 0:00:02]} 6. Be2 {[%emt 0:00:01]} Nbd7 {[%emt 0:00:02]} 7. Be3 {[%emt 0:00:03]} e5 {[%emt 0:00:01]} 8. d5 {[%emt 0:00:05]} a5 {[%emt 0:00:02]} 9. O-O {[%emt 0:00:06]} Re8 {[%emt 0:00:07]} 10. Nd2 {[%emt 0:00:04]} Nc5 {[%emt 0:00:03]} 11. Bxc5 {[%emt 0:00:02]} dxc5 {[%emt 0:00:01]} 0-1

[Event "GER-chW Blitz 2019"]
[Site "Magdeburg"]
[Date "2019.05.25"]
[Round "17.1"]
[White "Fuchs, Judith"]
[Black "Roesler, Hannah Clara Hed"]
[Result "1-0"]
[ECO "A45"]
[WhiteElo "2218"]
[BlackElo "1619"]
[Annotator "NA"]
[PlyCount "55"]
[EventDate "2019.05.25"]
[EventType "tourn"]
[EventCountry "GER"]
[SourceTitle "playchess.com"]
[Source "ChessBase"]
[SourceQuality "1"]
[TimeControl "180+2"]

1. d4 {[%emt 0:00:00]} Nf6 {[%emt 0:00:00]} 2. Bf4 {[%emt 0:00:00]} e6 {[%emt 0:00:13]} 3. e3 {[%emt 0:00:01]} d5 {[%emt 0:00:02]} 4. Nf3 {[%emt 0:00:02]} c5 {[%emt 0:00:05]} 5. c3 {[%emt 0:00:01]} Nc6 {[%emt 0:00:01]} 6. Nbd2 {[%emt 0:00:03]} Bd6 {[%emt 0:00:19]} 7. Bg3 {[%emt 0:00:01]} O-O {[%emt 0:00:05]} 8. Bd3 {[%emt 0:00:01]} c4 {[%emt 0:00:34]} 9. Bc2 {[%emt 0:00:03]} b5 {[%emt 0:00:02]} 10. a3 {[%emt 0:00:03]} Bb7 {[%emt 0:00:05]} 11. Qe2 {[%emt 0:00:02]} a5 {[%emt 0:00:04]} 12. e4 {[%emt 0:00:16]} dxe4 {[%emt 0:00:22]} 13. Nxe4 {[%emt 0:00:01]} Nxe4 {[%emt 0:00:26]} 14. Bxe4 {[%emt 0:00:06]} Qc7 {[%emt 0:00:11]} 15. Bc2 {[%emt 0:00:17]} Rfe8 {[%emt 0:00:17]} 16. Bxd6 {[%emt 0:00:53]} Qxd6 {[%emt 0:00:04]} 17. Rd1 {[%emt 0:00:20]} Qf4 {[%emt 0:00:18]} 18. Qe4 {[%emt 0:00:21]} Qf6 {[%emt 0:00:12]} 19. Qxh7+ {[%emt 0:00:04]} Kf8 {[%emt 0:00:00]} 20. O-O {[%emt 0:00:08]} Ke7 {[%emt 0:00:08]} 21. Qh4 {[%emt 0:00:05]} Rh8 {[%emt 0:00:04]} 22. Qxf6+ {[%emt 0:00:01]} gxf6 {[%emt 0:00:01]} 23. d5 {[%emt 0:00:19]} exd5 {[%emt 0:00:04]} 24. Rxd5 {[%emt 0:00:19]} Ne5 {[%emt 0:00:01]} 25. Rxb5 {[%emt 0:00:10]} Bxf3 {[%emt 0:00:03]} 26. Re1 {[%emt 0:00:07]} Bc6 {[%emt 0:00:07]} 27. Rb6 {[%emt 0:00:03]} Bd7 28. f4 1-0

[Event "GER-chW Blitz 2019"]
[Site "Magdeburg"]
[Date "2019.05.25"]
[Round "17.2"]
[White "Lubbe, Melanie"]
[Black "Kotyk, Valeriya"]
[Result "1-0"]
[ECO "A45"]
[WhiteElo "2278"]
[BlackElo "1739"]
[Annotator "NA"]
[PlyCount "70"]
[EventDate "2019.05.25"]
[EventType "tourn"]
[EventCountry "GER"]
[SourceTitle "playchess.com"]
[Source "ChessBase"]
[SourceQuality "1"]
[TimeControl "180+2"]

1. d4 {[%emt 0:00:00]} Nf6 {[%emt 0:00:00]} 2. Nc3 {[%emt 0:00:00]} d5 {[%emt 0:00:03]} 3. Bf4 {[%emt 0:00:00]} c6 {[%emt 0:00:05]} 4. f3 {[%emt 0:00:03]} Qb6 {[%emt 0:00:23]} 5. Rb1 {[%emt 0:00:09]} Bf5 {[%emt 0:00:06]} 6. g4 {[%emt 0:00:04]} Bg6 {[%emt 0:00:05]} 7. h4 {[%emt 0:00:02]} h6 {[%emt 0:00:02]} 8. e3 {[%emt 0:00:05]} e6 {[%emt 0:00:06]} 9. Bd3 {[%emt 0:00:01]} Bxd3 {[%emt 0:00:03]} 10. Qxd3 {[%emt 0:00:01]} Nbd7 {[%emt 0:00:06]} 11. Nh3 {[%emt 0:00:15]} c5 {[%emt 0:00:06]} 12. Kf2 {[%emt 0:00:37]} cxd4 {[%emt 0:00:02]} 13. exd4 {[%emt 0:00:02]} Bd6 {[%emt 0:00:08]} 14. Rhe1 {[%emt 0:00:13]} O-O-O {[%emt 0:00:12]} 15. Na4 {[%emt 0:00:19]} Qc7 {[%emt 0:00:06]} 16. Qd2 {[%emt 0:00:15]} Kb8 {[%emt 0:00:12]} 17. b3 {[%emt 0:00:07]} Rhg8 {[%emt 0:00:08]} 18. Kg2 {[%emt 0:00:02]} Rc8 {[%emt 0:00:03]} 19. c4 {[%emt 0:00:07]} dxc4 {[%emt 0:00:05]} 20. bxc4 {[%emt 0:00:01]} Bxf4 {[%emt 0:00:02]} 21. Nxf4 {[%emt 0:00:02]} Nb6 {[%emt 0:00:03]} 22. Nc5 {[%emt 0:00:09]} Nfd7 {[%emt 0:00:06]} 23. Nfd3 {[%emt 0:00:06]} Rgd8 {[%emt 0:00:08]} 24. Qc3 {[%emt 0:00:04]} g5 {[%emt 0:00:04]} 25. a4 {[%emt 0:00:05]} Qd6 {[%emt 0:00:17]} 26. a5 {[%emt 0:00:17]} Na4 {[%emt 0:00:22]} 27. Nxa4 {[%emt 0:00:06]} Rc7 {[%emt 0:00:07]} 28. Nac5 Nf8 {[%emt 0:00:11]} 29. Rb2 {[%emt 0:00:14]} Ng6 {[%emt 0:00:05]} 30. Reb1 {[%emt 0:00:10]} Qxd4 {[%emt 0:00:09]} 31. Qxd4 {[%emt 0:00:05]} Rxd4 {[%emt 0:00:01]} 32. Na6+ {[%emt 0:00:03]} Kc8 {[%emt 0:00:02]} 33. Nxc7 {[%emt 0:00:01]} Kxc7 {[%emt 0:00:01]} 34. Rxb7+ {[%emt 0:00:02]} Kd8 {[%emt 0:00:04]} 35. Nc5 {[%emt 0:00:02]} Nf4+ {[%emt 0:00:02]} 1-0